fUSD/lending_fUSD_20260106
["ID","MTS","AMOUNT","RATE_DAILY","PERIOD"]
[400551531,1767712233624,-2000.0,0.0004,40]
[400551532,1767712233634,-2000.0,0.0004,40]
[400551533,1767712233644,-2021.0,0.0004,30]
[400551534,1767712233654,-5000.15236487,0.0004,11]
[400551535,1767712233664,-5123.26449382,0.0004,12]
[400551536,1767712233673,-17340.64900048,0.0004,4]
[400551537,1767712233684,-21032.43181698,0.0004,4]
[400551538,1767712233791,-82940.75710811,0.0004,4]
[400551539,1767712233800,-151.0,0.0004,120]
[400551540,1767712233810,-6270.28,0.00040091,2]
[400551541,1767712233820,-310.1,0.00040157,6]
[400551542,1767712233830,-1757.13,0.00040348,2]
[400551543,1767712233840,-2642.63930382,0.00040362,15]
[400551544,1767712233850,-243.42,0.00040366,120]
[400551545,1767712233860,-5177.17,0.00040505,2]
[400551546,1767712233869,-697.68,0.00040568,30]
[400551547,1767712233879,-711.41,0.00040568,30]
[400551548,1767712233890,-451.88618072,0.00040568,60]
[400551549,1767712233900,-1036.07371933,0.00040568,50]
[400551550,1767712233909,-1015.40920523,0.00040568,50]
[400551551,1767712233919,-1088.71571548,0.00040568,50]
[400551552,1767712233929,-1014.55971505,0.00040568,50]
[400551553,1767712233939,-1085.56096415,0.00040568,50]
[400551554,1767712233949,-1115.03537838,0.00040568,50]
[400551555,1767712233958,-155.77,0.00040688,120]
[400551556,1767712233968,-155.72,0.00040688,120]
[400551557,1767712233978,-2642.63930382,0.00040732,15]
[400551558,1767712233987,-155.78761916,0.00040788,120]
[400551559,1767712233997,-155.72,0.00040788,120]
[400551560,1767712234007,-299.68563405,0.00040792,15]
[400551561,1767712234016,-1077.55509592,0.00040793,30]
[400551562,1767712234026,-500.0,0.00040793,14]
[400551563,1767712234036,-236.4778,0.00040794,2]
[400551564,1767712234045,-2533.0427,0.00040794,2]
[400551565,1767712234056,-2500.0,0.00040794,2]
[400551566,1767712234065,-201.4028428,0.00040794,19]
[400551567,1767712234075,-151.0,0.000408,120]
[400551568,1767712234085,-152.0,0.00040836,4]
[400551569,1767712234095,-155.72,0.00040888,120]
[400551570,1767712234105,-500.0,0.00040892,120]
[400551571,1767712234115,-156.92352515,0.00040893,31]
[400551572,1767712234124,-389.38891521,0.00040893,31]
[400551573,1767712234133,-500.0,0.00040893,120]
[400551574,1767712234145,-500.0,0.00040893,120]
[400551575,1767712234154,-256.84,0.00040893,120]
[400551576,1767712234164,-500.0,0.00040893,14]
[400551577,1767712234173,-500.0,0.00040893,14]
[400551578,1767712234183,-500.0,0.00040893,14]
[400551579,1767712234192,-500.0,0.00040893,14]
[400551580,1767712234201,-500.0,0.00040893,14]
[400551581,1767712234212,-500.0,0.00040893,14]
[400551582,1767712234221,-634.18,0.00040893,120]
[400551583,1767712234230,-500.0,0.00040893,14]
[400551584,1767712234240,-500.0,0.00040893,14]
[400551585,1767712234253,-500.0,0.00040893,120]
[400551586,1767712234263,-614.80636737,0.00040893,120]
[400551587,1767712234272,-500.0,0.00040893,120]
[400551588,1767712234282,-500.0,0.00040893,120]
[400551589,1767712234291,-500.0,0.00040893,120]
[400551590,1767712234300,-500.0,0.00040893,120]
[400551591,1767712234310,-500.0,0.00040893,120]
[400551592,1767712234319,-175.41051216,0.00040893,120]
[400551593,1767712234329,-500.0,0.00040893,120]
[400551594,1767712234339,-500.0,0.00040893,120]
[400551595,1767712234348,-500.0,0.00040893,120]
[400551596,1767712234357,-500.0,0.00040893,120]
[400551597,1767712234367,-500.0,0.00040893,120]
[400551598,1767712234376,-500.0,0.00040893,120]
[400551599,1767712234385,-500.0,0.00040893,120]
[400551600,1767712234394,-500.0,0.00040893,120]
[400551601,1767712234403,-500.0,0.00040893,120]
[400551602,1767712234412,-582.16,0.00040893,120]
[400551603,1767712234421,-500.0,0.00040893,120]
[400551604,1767712234431,-500.0,0.00040893,120]
[400551605,1767712234440,-500.0,0.00040893,120]
[400551606,1767712234450,-500.0,0.00040893,120]
[400551607,1767712234459,-500.0,0.00040893,120]
[400551608,1767712234468,-500.0,0.00040893,120]
[400551609,1767712234478,-500.0,0.00040893,120]
[400551610,1767712234488,-500.0,0.00040893,120]
[400551611,1767712234498,-500.0,0.00040893,120]
[400551612,1767712234507,-500.0,0.00040893,120]
[400551613,1767712234516,-500.0,0.00040893,120]
[400551614,1767712234526,-500.0,0.00040893,120]
[400551615,1767712234536,-230.0,0.00040893,120]
[400551616,1767712234546,-500.0,0.00040893,120]
[400551617,1767712234555,-500.0,0.00040893,120]
[400551618,1767712234566,-500.0,0.00040893,120]
[400551619,1767712234576,-500.0,0.00040893,120]
[400551620,1767712234585,-593.62818992,0.00040893,120]
[400551621,1767712234595,-500.0,0.00040893,120]
[400551622,1767712234605,-500.0,0.00040893,30]
[400551623,1767712234614,-516.86,0.00040893,30]
[400551624,1767712234623,-436.46130357,0.00040893,14]
[400551625,1767712234633,-599.94546314,0.00040893,60]
[400551626,1767712234643,-500.0,0.00040893,120]
[400551627,1767712234652,-500.0,0.00040893,120]
[400551628,1767712234661,-500.0,0.00040893,120]
[400551629,1767712234671,-500.0,0.00040893,120]
[400551630,1767712234680,-535.42736389,0.00040893,120]
[400551631,1767712234689,-500.0,0.00040893,120]
[400551632,1767712234698,-235.72,0.00040893,120]
[400551633,1767712234708,-500.0,0.00040893,120]
[400551634,1767712234717,-357.35894904,0.00040893,120]
[400551635,1767712234727,-254.87182206,0.00040893,14]
[400551636,1767712234738,-3000.0,0.00040893,2]
[400551637,1767712234747,-2752.72,0.00040893,40]
[400551638,1767712234757,-2752.72,0.00040893,40]
[400551639,1767712234766,-2752.72,0.00040893,40]
[400551640,1767712234775,-2752.72,0.00040893,40]
[400551641,1767712234785,-346.0,0.00040894,5]
[400551642,1767712234794,-35233.7876379,0.00040894,2]
[400551643,1767712234807,-278.23148142,0.00040894,2]
[400551644,1767712234866,151.0,0.00020993,2]
[400551647,1767712238200,-223.0315306,0.00025696,2]
[400551648,1767712238214,-136.69847,0.00025696,2]
[400551649,1767712238325,-94.58522723,0.00025696,2]
[400551650,1767712238334,-239.84119403,0.00025696,2]
[400551651,1767712238344,-120.65474279,0.00025696,2]
[400551652,1767712238359,-128.06057542,0.00025696,2]
[400551653,1767712238368,-257.91778498,0.00025696,2]
[400551654,1767712238379,-267.46074303,0.00025696,2]
[400551655,1767712238388,-277.35679052,0.00025696,2]
[400551656,1767712238399,-287.61899177,0.00027065,2]
[400551657,1767712238409,-1005.7592,0.000399,2]
[400551658,1767712238418,-500.0,0.00039998,31]
[400551659,1767712238428,-500.0,0.00039998,31]
[400551660,1767712238438,-51.23288195,0.00039998,31]
[400551661,1767712238449,-448.76711805,0.00039998,31]
[400551662,1767712238458,-500.0,0.00039998,31]
[400551663,1767712238467,-500.0,0.00039998,31]
[400551664,1767712238476,-253.34190705,0.00039998,31]
[400551665,1767712238485,-586.55895383,0.00039998,31]
[400551666,1767712238496,-513.72410666,0.00039998,31]
[400551667,1767712238505,-500.0,0.00039998,31]
[400551668,1767712238515,-500.0,0.00039998,31]
[400551669,1767712238525,-500.0,0.00039998,31]
[400551670,1767712238534,-500.0,0.00039998,31]
[400551671,1767712238543,-500.0,0.00039998,31]
[400551672,1767712238552,-500.0,0.00039998,31]
[400551673,1767712238562,-500.0,0.00039998,31]
[400551674,1767712238571,-500.0,0.00039998,31]
[400551675,1767712238580,-500.0,0.00039998,31]
[400551676,1767712238590,-500.0,0.00039998,31]
[400551677,1767712238599,-500.0,0.00039998,31]
[400551678,1767712238608,-500.0,0.00039998,31]
[400551679,1767712238617,-500.0,0.00039998,31]
[400551680,1767712238627,-500.0,0.00039998,31]
[400551681,1767712238637,-500.0,0.00039998,31]
[400551682,1767712238646,-500.0,0.00039998,31]
[400551683,1767712238657,-500.0,0.00039998,31]
[400551684,1767712238666,-500.0,0.00039998,31]
[400551686,1767712238676,-500.0,0.00039998,31]
[400551688,1767712238686,-500.0,0.00039998,31]
[400551690,1767712238696,-500.0,0.00039998,31]
[400551692,1767712238705,-350.95036615,0.00039998,31]
[400551694,1767712238714,-500.0,0.00039998,31]
[400551696,1767712238723,-500.0,0.00039998,31]
[400551698,1767712238734,-500.0,0.00039998,31]
[400551700,1767712238744,-500.0,0.00039998,31]
[400551703,1767712238754,-500.0,0.00039998,31]
[400551706,1767712238764,-500.0,0.00039998,31]
[400551709,1767712238773,-500.0,0.00039998,31]
[400551711,1767712238784,-500.0,0.00039998,31]
[400551713,1767712238793,-500.0,0.00039998,31]
[400551715,1767712238803,-500.0,0.00039998,31]
[400551717,1767712238811,-500.0,0.00039998,31]
[400551719,1767712238821,-500.0,0.00039998,31]
[400551721,1767712238830,-500.0,0.00039998,31]
[400551723,1767712238839,-500.0,0.00039998,31]
[400551725,1767712238848,-500.0,0.00039998,31]
[400551727,1767712238858,-500.0,0.00039998,31]
[400551729,1767712238867,-500.0,0.00039998,31]
[400551731,1767712238876,-964487.98088068,0.00040894,2]
[400551733,1767712238887,-250.0,0.00040894,45]
[400551735,1767712238895,-250.0,0.00040894,45]
[400551737,1767712238905,-3411.04,0.000409,14]
[400551739,1767712238915,-1353.9,0.00040938,6]
[400551741,1767712238925,-509.37834424,0.00040983,120]
[400551743,1767712238934,-500.0,0.00040983,120]
[400551744,1767712238944,-500.0,0.00040984,120]
[400551746,1767712238953,-500.0,0.00040984,120]
[400551748,1767712238963,-155.72,0.00040988,120]
[400551750,1767712238972,-500.0,0.00040993,120]
[400551752,1767712238982,-500.0,0.00040993,120]
[400551754,1767712238993,-570.65,0.00040993,120]
[400551756,1767712239003,-500.0,0.00040994,120]
[400551759,1767712239013,-558.63214799,0.00040994,120]
[400551761,1767712239023,-500.0,0.00040994,120]
[400551763,1767712239033,-500.0,0.00040994,120]
[400551765,1767712239043,-500.0,0.00040994,120]
[400551767,1767712239053,-500.0,0.00040994,120]
[400551769,1767712239062,-500.0,0.00040994,120]
[400551771,1767712239071,-559.63185396,0.00040994,120]
[400551772,1767712239081,-530.28303401,0.00040994,120]
[400551775,1767712239091,-500.0,0.00040994,120]
[400551776,1767712239100,-500.0,0.00040994,120]
[400551778,1767712239110,-500.0,0.00040994,120]
[400551781,1767712239119,-500.0,0.00040994,120]
[400551783,1767712239129,-526.76962441,0.00040994,120]
[400551785,1767712239139,-500.0,0.00040994,120]
[400551787,1767712239148,-500.0,0.00040994,120]
[400551788,1767712239158,-500.0,0.00040994,120]
[400551791,1767712239168,-500.0,0.00040994,120]
[400551793,1767712239177,-256.70705262,0.00040994,120]
[400551794,1767712239186,-260.0,0.00041,7]
[400551796,1767712239196,-1161.89680024,0.00041,30]
[400551798,1767712239210,-1032.62372196,0.00041,30]
[400551800,1767712239228,-199.0,0.00041,2]
[400551802,1767712239239,-1526.5393975,0.00041,30]
[400551804,1767712239251,-299.68563404,0.00041074,15]
[400551806,1767712239261,-155.72,0.00041088,120]
[400551808,1767712239271,-453.30745338,0.00041095,120]
[400551810,1767712239281,-999.0,0.00041095,120]
[400551812,1767712239293,-6000.0,0.00041095,5]
[400551813,1767712239302,-4000.0,0.00041095,5]
[400551815,1767712239311,-709.00000002,0.00041095,120]
[400551816,1767712239321,-396.20552337,0.00041095,120]
[400551818,1767712239330,-150.0,0.00041096,10]
[400551820,1767712239340,-150.0,0.00041096,10]
[400551822,1767712239349,-254.0,0.00041096,30]
[400551824,1767712239358,-2000.0,0.00041096,13]
[400551826,1767712239368,-2000.0,0.00041096,13]
[400551828,1767712239377,-2000.0,0.00041096,13]
[400551830,1767712239387,-2000.0,0.00041096,13]
[400551832,1767712239397,-2000.0,0.00041096,13]
[400551834,1767712239406,-2000.0,0.00041096,13]
[400551836,1767712239416,-2000.0,0.00041096,13]
[400551837,1767712239425,-2000.0,0.00041096,13]
[400551839,1767712239436,-2000.0,0.00041096,13]
[400551841,1767712239447,-2000.0,0.00041096,13]
[400551843,1767712239461,-1312.0,0.00041096,13]
[400551845,1767712239471,-922.0,0.00041096,109]
[400551847,1767712239480,-1228.5,0.00041096,116]
[400551849,1767712239491,-2642.63930382,0.00041103,15]
[400551851,1767712239500,-155.72,0.00041188,120]
[400551853,1767712239509,-155.79,0.00041288,120]
[400551855,1767712239518,-299.68563404,0.00041355,15]
[400551857,1767712239527,-2642.63930382,0.00041474,15]
[400551859,1767712239537,-8127.02166362,0.000415,120]
[400551861,1767712239547,-151.0,0.000416,120]
[400551862,1767712239556,-299.68563404,0.00041637,15]
[400551864,1767712239565,-208.38787665,0.00041644,10]
[400551866,1767712239575,-513.0,0.0004167,15]
[400551868,1767712239584,-1353.9,0.00041718,30]
[400551870,1767712239593,-19115.0,0.00041807,30]
[400551872,1767712239603,-2642.63930382,0.00041844,15]
[400551874,1767712239614,-540.8107136,0.000419,120]
[400551876,1767712239622,-540.81071358,0.000419,120]
[400551878,1767712239631,-540.81071358,0.000419,120]
[400551880,1767712239640,-540.81071358,0.000419,120]
[400551882,1767712239649,-540.81071358,0.000419,120]
[400551884,1767712239659,-540.81071358,0.000419,120]
[400551886,1767712239667,-540.81071358,0.000419,120]
[400551888,1767712239677,-540.81071358,0.000419,120]
[400551889,1767712239686,-540.81071358,0.000419,120]
[400551891,1767712239696,-540.81071358,0.000419,120]
[400551894,1767712239706,-540.81071358,0.000419,120]
[400551896,1767712239716,-540.81071358,0.000419,120]
[400551898,1767712239726,-200.0,0.00041918,10]
[400551899,1767712239735,-299.68563404,0.00041919,15]
[400551901,1767712239745,-1032.0,0.00042,30]
[400551903,1767712239755,-199.0,0.00042,30]
[400551905,1767712239764,-540.81071358,0.00042064,120]
[400551907,1767712239774,-398.35286945,0.000421,7]
[400551909,1767712239783,-1273.05,0.000421,60]
[400551911,1767712239793,-911.64,0.00042102,90]
[400551913,1767712239802,-999.0,0.00042191,120]
[400551915,1767712239812,-299.68563404,0.000422,15]
[400551917,1767712239822,-2642.63930382,0.00042215,15]
[400551919,1767712239831,-829.09594855,0.00042229,2]
[400551921,1767712239840,-19115.0,0.00042238,30]
[400551923,1767712239849,-540.81071358,0.00042245,120]
[400551924,1767712239858,-11844.77875623,0.00042343,5]
[400551927,1767712239868,-310.2,0.000424,43]
[400551928,1767712239877,-151.0,0.000424,120]
[400551930,1767712239886,-540.81071358,0.00042425,120]
[400551932,1767712239896,-920.58708928,0.00042427,14]
[400551934,1767712239905,-920.58708916,0.00042427,14]
[400551936,1767712239914,-920.58708916,0.00042427,14]
[400551938,1767712239924,-920.58708916,0.00042427,14]
[400551940,1767712239933,-920.58708916,0.00042427,14]
[400551942,1767712239942,-920.58708916,0.00042427,14]
[400551944,1767712239952,-920.58708916,0.00042427,14]
[400551946,1767712239961,-920.58708916,0.00042427,14]
[400551948,1767712239970,-920.58708916,0.00042427,14]
[400551950,1767712239979,-920.58708916,0.00042427,14]
[400551952,1767712239989,-299.68563404,0.00042482,15]
[400551954,1767712240000,-1353.9,0.00042499,30]
[400551956,1767712240010,-1075.22115748,0.00042534,50]
[400551958,1767712240019,-1045.49481489,0.00042534,50]
[400551960,1767712240028,-1122.12295216,0.00042534,50]
[400551962,1767712240037,-1023.71080078,0.00042534,50]
[400551963,1767712240047,-1066.05889899,0.00042534,50]
[400551965,1767712240056,-1014.59392155,0.00042534,50]
[400551967,1767712240066,-1104.33008096,0.00042534,50]
[400551969,1767712240075,-1105.46528984,0.00042534,50]
[400551971,1767712240084,-1086.46140513,0.00042534,50]
[400551973,1767712240093,-1089.91881293,0.00042534,50]
[400551975,1767712240103,-1146.85990494,0.00042534,50]
[400551977,1767712240112,-1017.87459949,0.00042534,50]
[400551979,1767712240122,-1010.58073153,0.00042534,50]
[400551981,1767712240131,-1588.98199345,0.00042534,50]
[400551983,1767712240140,-2642.63930382,0.00042586,15]
[400551985,1767712240150,-920.58708916,0.00042603,14]
[400551987,1767712240160,-540.81071358,0.00042606,120]
[400551989,1767712240169,-500.0,0.0004263,90]
[400551990,1767712240178,-337.83868972,0.00042643,14]
[400551992,1767712240188,-800.0,0.00042667,16]
[400551994,1767712240199,-800.0,0.00042667,16]
[400551996,1767712240219,-800.0,0.00042667,16]
[400551998,1767712240231,-800.0,0.00042667,16]
[400552000,1767712240241,-800.0,0.00042667,16]
[400552002,1767712240251,-800.0,0.00042667,16]
[400552004,1767712240260,-242.64097234,0.00042667,16]
[400552006,1767712240271,-19115.0,0.00042669,30]
[400552008,1767712240281,-290.54655114,0.00042705,14]
[400552009,1767712240290,-800.0,0.00042738,16]
[400552011,1767712240300,-800.0,0.00042738,16]
[400552013,1767712240311,-800.0,0.00042738,16]
[400552015,1767712240320,-800.0,0.00042738,16]
[400552017,1767712240330,-800.0,0.00042738,16]
[400552019,1767712240340,-800.0,0.00042738,16]
[400552021,1767712240350,-800.0,0.00042738,16]
[400552023,1767712240360,-283.55496788,0.00042738,16]
[400552025,1767712240369,-800.0,0.00042738,16]
[400552027,1767712240379,-800.0,0.00042738,16]
[400552029,1767712240388,-800.0,0.00042738,16]
[400552031,1767712240397,-800.0,0.00042738,16]
[400552033,1767712240405,-800.0,0.00042738,16]
[400552035,1767712240415,-800.0,0.00042738,16]
[400552037,1767712240424,-800.0,0.00042738,16]
[400552039,1767712240435,-800.0,0.00042738,16]
[400552041,1767712240444,-250.0,0.0004274,10]
[400552043,1767712240453,-507.465941,0.0004274,10]
[400552045,1767712240463,-299.68563404,0.00042764,15]
[400552047,1767712240472,-920.58708916,0.00042784,15]
[400552049,1767712240481,-540.81071358,0.00042786,120]
[400552051,1767712240491,-319.28209618,0.00042803,113]
[400552053,1767712240502,-3411.04,0.000429,14]
[400552055,1767712240512,-300.0,0.00042908,2]
[400552057,1767712240521,-300.0,0.00042912,2]
[400552059,1767712240531,-2642.63930382,0.00042956,15]
[400552061,1767712240540,-500.0,0.00042959,120]
[400552062,1767712240550,-920.58708916,0.00042965,15]
[400552064,1767712240559,-540.81071358,0.00042966,120]
[400552066,1767712240569,-300.0,0.00042975,2]
[400552068,1767712240578,-1000.0,0.00042999,120]
[400552070,1767712240587,-2000.0,0.00043,120]
[400552072,1767712240596,-2000.0,0.00043,120]
[400552074,1767712240605,-468.0,0.00043,40]
[400552076,1767712240615,-879.64,0.00043,120]
[400552078,1767712240624,-10741.0,0.00043,2]
[400552080,1767712240633,-500.0,0.00043014,120]
[400552082,1767712240644,-300.0,0.00043015,2]
[400552084,1767712240653,-299.68563404,0.00043045,15]
[400552086,1767712240662,-500.0,0.00043068,120]
[400552088,1767712240671,-19115.0,0.000431,30]
[400552090,1767712240681,-920.58708916,0.00043146,15]
[400552092,1767712240690,-540.81071358,0.00043147,120]
[400552094,1767712240699,-2500.0,0.00043157,120]
[400552096,1767712240708,-2562.08208434,0.00043157,120]
[400552098,1767712240718,-151.0,0.000432,120]
[400552100,1767712240727,-1353.9,0.0004328,30]
[400552102,1767712240736,-999.0,0.00043287,120]
[400552104,1767712240749,-500.0,0.000433,120]
[400552106,1767712240758,-539.85149144,0.00043301,14]
[400552108,1767712240772,-500.0,0.00043301,120]
[400552110,1767712240781,-172.44696873,0.00043305,11]
[400552112,1767712240791,-186.65403272,0.00043326,120]
[400552114,1767712240800,-2642.63930382,0.00043327,15]
[400552116,1767712240810,-299.68563404,0.00043327,15]
[400552118,1767712240820,-876.2480451,0.00043327,2]
[400552120,1767712240830,-203.68095415,0.00043327,2]
[400552122,1767712240839,-540.81071358,0.00043327,120]
[400552124,1767712240847,-920.58708916,0.00043327,15]
[400552126,1767712240856,-300.0,0.00043364,2]
[400552127,1767712240865,-3758.5509172,0.00043368,2]
[400552129,1767712240878,-500.0,0.00043399,14]
[400552131,1767712240887,-2752.72,0.00043399,40]
[400552133,1767712240896,-500.0,0.000434,120]
[400552135,1767712240906,-500.0,0.000434,120]
[400552137,1767712240916,-500.0,0.000434,120]
[400552139,1767712240925,-500.0,0.000434,120]
[400552141,1767712240934,-500.0,0.000434,120]
[400552143,1767712240943,-500.0,0.000434,120]
[400552145,1767712240952,-500.0,0.000434,120]
[400552147,1767712240961,-500.0,0.000434,120]
[400552149,1767712240971,-500.0,0.000434,120]
[400552150,1767712240980,-500.0,0.000434,120]
[400552151,1767712240989,-500.0,0.000434,120]
[400552152,1767712241000,-500.0,0.000434,120]
[400552153,1767712241010,-500.0,0.000434,120]
[400552154,1767712241023,-500.0,0.000434,120]
[400552155,1767712241032,-517.1,0.000434,120]
[400552156,1767712241042,-160.0,0.000434,47]
[400552157,1767712241051,-626.06812109,0.000434,120]
[400552158,1767712241062,-500.0,0.00043401,120]
[400552159,1767712241071,-500.0,0.00043401,120]
[400552160,1767712241080,-118206.94560466,0.00043401,2]
[400552161,1767712241090,-500.0,0.00043402,120]
[400552162,1767712241099,-500.0,0.00043402,120]
[400552163,1767712241110,-500.0,0.00043402,120]
[400552164,1767712241120,-501.02804395,0.00043402,120]
[400552166,1767712241129,-500.0,0.00043402,120]
[400552167,1767712241138,-500.0,0.00043402,120]
[400552169,1767712241148,-1120.96775979,0.00043402,120]
[400552171,1767712241158,-500.0,0.00043402,14]
[400552174,1767712241167,-505.34175483,0.00043402,120]
[400552175,1767712241177,-2752.72,0.00043402,40]
[400552177,1767712241187,-500.0,0.00043404,14]
[400552179,1767712241196,-2752.72,0.00043404,40]
[400552181,1767712241207,-500.0,0.00043405,14]
[400552183,1767712241216,-500.0,0.00043405,14]
[400552185,1767712241226,-500.0,0.00043405,14]
[400552187,1767712241238,-500.0,0.00043405,14]
[400552190,1767712241249,-500.0,0.00043405,14]
[400552191,1767712241259,-500.0,0.00043405,14]
[400552193,1767712241269,-500.0,0.00043405,14]
[400552195,1767712241278,-500.0,0.00043405,14]
[400552197,1767712241287,-500.0,0.00043405,14]
[400552199,1767712241297,-500.0,0.00043405,14]
[400552201,1767712241306,-500.0,0.00043405,14]
[400552203,1767712241315,-500.0,0.00043405,14]
[400552205,1767712241325,-500.0,0.00043405,14]
[400552207,1767712241334,-500.0,0.00043405,14]
[400552209,1767712241343,-491.89727221,0.00043405,14]
[400552211,1767712241352,-2752.72,0.00043405,40]
[400552213,1767712241361,-2752.72,0.00043405,40]
[400552215,1767712241371,-2752.72,0.00043405,40]
[400552217,1767712241380,-2752.72,0.00043405,40]
[400552219,1767712241389,-2752.72,0.00043405,40]
[400552221,1767712241399,-2752.72,0.00043405,40]
[400552223,1767712241408,-2752.72,0.00043405,40]
[400552225,1767712241417,-2752.72,0.00043405,40]
[400552227,1767712241428,-2752.72,0.00043405,40]
[400552229,1767712241438,-2752.72,0.00043405,40]
[400552231,1767712241447,-2752.72,0.00043405,40]
[400552233,1767712241457,-2752.72,0.00043405,40]
[400552235,1767712241466,-2752.72,0.00043405,40]
[400552237,1767712241475,-2752.72,0.00043405,40]
[400552239,1767712241485,-2752.72,0.00043405,40]
[400552241,1767712241495,-2752.72,0.00043405,40]
[400552243,1767712241504,-2752.93126711,0.00043405,40]
[400552245,1767712241513,-194.34851776,0.00043405,30]
[400552247,1767712241523,-152.0,0.00043419,5]
[400552249,1767712241531,-47006.4593105,0.00043426,40]
[400552254,1767712241576,-268.79999984,0.00028434,2]
[400552256,1767712241587,-29.46089462,0.00028434,2]
[400552258,1767712241596,-602.07410538,0.00043426,40]
[400552261,1767712241607,-1396.64,0.00043426,40]
[400552263,1767712241618,-994.82658412,0.00043426,40]
[400552265,1767712241629,-50000.0,0.00043426,41]
[400552267,1767712241638,-50000.0,0.00043426,42]
[400552269,1767712241647,-39413.63227905,0.00043426,43]
[400552316,1767712242082,-151.0,0.00026244,2]
[400552318,1767712242092,-309.29654756,0.00029803,2]
[400552320,1767712242101,-320.74051982,0.00031172,2]
[400552322,1767712242110,-500.0,0.00040893,60]
[400552324,1767712242120,-559.77313253,0.00040893,60]
[400552326,1767712242129,-1622.92409634,0.00043426,43]
[400552539,1767712244403,-332.60791905,0.00032541,2]
[400552541,1767712244412,-129.67346409,0.0003391,2]
[400552542,1767712244423,-135.16894081,0.0003391,2]
[400552543,1767712244433,-1045.67474845,0.00043426,43]
[400552544,1767712244445,-250.08938895,0.00043426,43]
[400552545,1767712244455,-7667.67948721,0.00043426,43]
[400552546,1767712244466,-50000.0,0.00043426,44]
[400552547,1767712244475,-150.0,0.00043426,120]
[400552548,1767712244485,-151.0,0.00043427,120]
[400552549,1767712244494,-151.0,0.00043427,120]
[400552550,1767712244506,-151.0,0.00043427,120]
[400552551,1767712244515,-151.0,0.00043427,120]
[400552552,1767712244525,-151.0,0.00043427,120]
[400552553,1767712244534,-151.0,0.00043427,120]
[400552554,1767712244543,-151.0,0.00043427,120]
[400552555,1767712244552,-151.0,0.00043427,120]
[400552556,1767712244561,-151.0,0.00043427,120]
[400552557,1767712244571,-151.0,0.00043427,120]
[400552558,1767712244581,-151.0,0.00043427,120]
[400552559,1767712244590,-151.0,0.00043427,120]
[400552560,1767712244600,-151.0,0.00043427,120]
[400552561,1767712244610,-226.648435,0.00043427,120]
[400552562,1767712244619,-151.0,0.00043427,120]
[400552563,1767712244629,-177.848981,0.00043427,120]
[400552564,1767712244638,-151.0,0.00043427,120]
[400552565,1767712244647,-151.0,0.00043427,120]
[400552566,1767712244656,-151.0,0.00043427,120]
[400552567,1767712244666,-151.0,0.00043427,120]
[400552568,1767712244675,-151.0,0.00043427,120]
[400552569,1767712244685,-151.0,0.00043427,120]
[400552570,1767712244695,-151.0,0.00043427,120]
[400552571,1767712244704,-151.0,0.00043427,120]
[400552572,1767712244713,-151.0,0.00043427,120]
[400552573,1767712244722,-151.0,0.00043427,120]
[400552574,1767712244731,-151.0,0.00043427,120]
[400552575,1767712244740,-151.0,0.00043427,120]
[400552576,1767712244750,-151.0,0.00043427,120]
[400552577,1767712244759,-151.0,0.00043427,120]
[400552578,1767712244769,-151.0,0.00043427,120]